Cogmind - Beta 17.1 @@@ ROGUE MODE // 2026.09.07 @ 05:18:56 Player: KURIIRI Result: Core melted Performance ------------- Evolutions (1) 500 Regions Visited (5) 1000 Robots Destroyed (62) 310 Value Destroyed (1814) 1814 Prototype IDs (5) 100 Alien Tech Used (0) 0 Bonus (7479) 7479 TOTAL SCORE: 11203 Bonus ------- High Alert Combat Kills 207 Follower Combat Kills 122 Prayed to X0-1V1 5000 Major X0-1V1 Interference 950 Entered Garrisons 200 Used RIF Installer 1000 Cogmind --------- Core Integrity 0/200 Matter 245/700 Energy 121/1025 System Corruption 0% Temperature Critical (743) Movement Treading (240) Ox1 Location -9/Garrison Parts ------- > --- POWER (1) -------- Light Ion Engine > --- PROPULSION (3) --- Light Treads Light Treads > --- UTILITY (3) ------ Heat Sink High-capacity Storage Unit > --- WEAPON (3) ------- Arc Projector > --- INVENTORY (20) --- Cooled Ion Engine Light Treads Light Treads Wheel Wheel Medium Storage Unit Improved Medium Laser Particle Cannon Improved Light Cannon Improved Light Cannon Improved Light Cannon Improved Light Cannon Grenade Launcher Missile Launcher Missile Launcher Missile Launcher Peak State ------------ > --- POWER ------------ Light Ion Engine > --- PROPULSION ------- Light Treads Light Treads Light Treads > --- UTILITY ---------- Heat Sink High-capacity Storage Unit X0-1V1's Piety Tracker > --- WEAPON ----------- Arc Projector Arc Projector Arc Projector > --- INVENTORY -------- Cooled Ion Engine Light Treads Light Treads Light Treads Light Treads Wheel Wheel Medium Storage Unit Improved Medium Laser Particle Cannon Improved Light Cannon Improved Light Cannon Improved Light Cannon Improved Light Cannon Grenade Launcher Missile Launcher Missile Launcher Missile Launcher [Rating: 34] Favorites ----------- Power Light Ion Engine Engine Light Ion Engine Propulsion Light Treads Treads Light Treads Leg Aluminum Leg Wheel Wheel Utility Heat Sink Device Heat Sink Storage Medium Storage Unit Weapon Particle Cannon Energy Gun Improved Medium Laser Energy Cannon Particle Cannon Ballistic Gun Improved Assault Rifle Ballistic Cannon Improved Light Cannon Launcher Grenade Launcher Build | -11 -10 -10 -9 -9 -9 ------- Run | Yrd Mat Min Mat Sto Gar Slots Evolved 2 | . . . 2 . . Power . | . . . . . . Propulsion 1 | . . . 1 . . Utility . | . . . . . . Weapon 1 | . . . 1 . . Parts Attached 37 | 3 6 2 14 . 12 Power 2 | . . . 1 . 1 Engine 2 | . . . 1 . 1 Core . | . . . . . . Reactor . | . . . . . . Propulsion 11 | 2 2 . 3 . 4 Treads 9 | 2 . . 3 . 4 Leg . | . . . . . . Wheel 2 | . 2 . . . . Hover . | . . . . . . Flight . | . . . . . . Utility 6 | 1 2 . 1 . 2 Device 4 | 1 1 . 1 . 1 Storage 2 | . 1 . . . 1 Processor . | . . . . . . Hackware . | . . . . . . Protection . | . . . . . . Artifact . | . . . . . . Weapon 18 | . 2 2 9 . 5 Energy Gun 8 | . . . 5 . 3 Energy Cannon 5 | . 2 . 3 . . Ballistic Gun 1 | . . . 1 . . Ballistic Cannon 1 | . . . . . 1 Launcher 3 | . . 2 . . 1 Special Weapon . | . . . . . . Impact Weapon . | . . . . . . Slashing Weapon . | . . . . . . Piercing Weapon . | . . . . . . Special Melee Weapon . | . . . . . . Unidentified Prototypes 4 | . 1 . 3 . . Parts Lost 9 | . 1 . 1 . 7 Power 1 | . . . . . 1 Propulsion 4 | . 1 . . . 3 Utility 1 | . . . . . 1 Weapon 3 | . . . 1 . 2 Highest Loss Streak 6 | . 1 . 1 . 6 To Critical Strikes . | . . . . . . Average Backups 10 | 5 7 9 9 9 11 Power . | 1 1 1 1 1 . Propulsion 2 | 3 1 1 1 2 2 Utility . | . . 1 1 1 1 Weapon 6 | 1 3 6 6 5 7 Tool/Special . | . . . . . . Unused Backups 12 | 6 . . . . 6 Power 2 | 1 . . . . 1 Propulsion 2 | 2 . . . . . Utility 1 | 1 . . . . . Weapon 7 | 2 . . . . 5 Tool/Special . | . . . . . . Average Slot Usage (%) 98 | . 99 100 95 100 99 Engine 11 | . 14 14 11 11 10 Treads 27 | . 26 . 23 33 31 Wheel 2 | . 1 28 7 . . Device 14 | . 14 14 11 11 15 Storage 11 | . 14 14 11 11 10 Energy Gun 6 | . 7 . 18 11 3 Energy Cannon 18 | . 20 17 8 22 20 Ballistic Cannon 2 | . . . . . 4 Launcher 2 | . . 10 3 . 3 Peak Build Rating 34 | 7 21 21 25 14 34 Average Rating 17 | 6 8 20 17 14 22 On Entrance 13 | 6 7 21 20 14 14 Avg Prop Armor Cover (%) 17 | . . . 17 . . Naked Turns . | . . . . . . Heaviest Build 59 | 13 21 21 27 27 59 Greatest Support 60 | 40 40 20 60 60 60 Greatest Overweight (x) 2 | . 1 1 2 . . Average Overweight (x) . | . . . . . . Largest Inventory Capacity 20 | 8 10 10 10 10 20 Average Capacity 13 | 8 9 10 10 10 17 Most Carried 19 | 6 10 10 10 9 19 Average Carried 10 | 5 7 9 9 9 11 Final Capacity 20 | 8 10 10 10 10 20 Final Carried 16 | 4 9 10 9 9 16 Class Distribution -------------------- 62% | Scavenger-Gunner 33% | Mutant 3% | Gunner Dominant Class ---------------- Mutant | -10/Materials Mutant | -10/Mines Scavenger-Gunner | -9/Materials Scavenger-Gunner | -9/Storage Scavenger-Gunner | -9/Garrison Resources | -11 -10 -10 -9 -9 -9 ----------- Run | Yrd Mat Min Mat Sto Gar Matter Collected 1106 | 230 86 . 281 . 509 Remotely . | . . . . . . Salvage Created 2272 | 89 639 . 556 . 988 Parts 134 | 6 31 . 38 . 59 Haulers Intercepted 3 | . 1 . 2 . . Recyclers Shooed 1 | . . . 1 . . Parts Field Recycled . | . . . . . . Retrieved Matter . | . . . . . . Parts Self-Destructed . | . . . . . . Prevented . | . . . . . . Parts Restored . | . . . . . . Kills | -11 -10 -10 -9 -9 -9 ------- Run | Yrd Mat Min Mat Sto Gar Combat Hostiles Destroyed 48 | . 10 . 8 . 30 Guns 7 | . . . 6 . 1 Cannons 26 | . 10 . 1 . 15 AOE 15 | . . . 1 . 14 Classes Destroyed 11 | 2 4 . 2 . 3 Builder 4 | . 1 . 3 . . Tunneler 1 | 1 . . . . . Hauler 3 | . 1 . 2 . . Recycler 2 | 1 . . 1 . . Watcher 4 | . 3 . 1 . . Swarmer 10 | . . . 2 . 8 Grunt 27 | . 10 . 4 . 13 Brawler 2 | . . . . . 2 Duelist 1 | . . . . . 1 Sentry 6 | . . . 2 . 4 Programmer 2 | . . . . . 2 Best Kill Streak 6 | 2 4 . 3 . 6 Combat Bots Only 6 | . 4 . 2 . 6 Max Kills in Single Turn 2 | 1 1 . 2 . 2 Gunslinging . | . . . . . . Exploded 2 | . . . 1 . 2 Melee . | . . . . . . Uniques/NPCs Destroyed . | . . . . . . Combat | -11 -10 -10 -9 -9 -9 -------- Run | Yrd Mat Min Mat Sto Gar Hostile Shots Fired 168 | . 53 . 27 . 88 Missed 46 | . 13 . 8 . 25 Hits 122 | . 40 . 19 . 63 Melee 1 | . . . . . 1 Projectile 121 | . 40 . 19 . 62 Critical Strikes 4 | . 1 . . . 3 Damage Taken 2075 | . 529 . 252 . 1294 Core 321 | . 50 . 47 . 224 Absorbed by Shields . | . . . . . . Ignored by Resistances 145 | . . . 14 . 131 Core Remaining (%) 90 | 100 . 80 . . . Volleys Fired 165 | 4 54 . 25 . 82 Largest 3 | 2 2 . 3 . 3 Hottest 204 | 100 128 . 204 . 192 Shots Fired 306 | 8 82 . 60 . 156 Gun 84 | 8 10 . 37 . 29 Cannon 195 | . 72 . 17 . 106 Launcher 27 | . . . 6 . 21 Special . | . . . . . . Kinetic 6 | . . . . . 6 Thermal 228 | 8 82 . 26 . 112 Explosive 27 | . . . 6 . 21 Electromagnetic 45 | . . . 28 . 17 Robot Hit Streak 23 | 3 15 . 23 . 21 Robot Miss Streak 5 | 1 3 . 3 . 5 Penetration Max . | . . . . . . Secondary Targets 1 | . . . 1 . . Max Gunslinging Chain 1 | . . . 1 . . Shots Hit Robots 182 | 4 55 . 35 . 88 Core Hits 105 | 3 18 . 25 . 59 Critical Kills . | . . . . . . Critical Parts Destroyed . | . . . . . . Critical Strikes . | . . . . . . Melee Attacks . | . . . . . . Impact . | . . . . . . Slashing . | . . . . . . Piercing . | . . . . . . Sneak Attacks . | . . . . . . Combat Hostiles . | . . . . . . Follow-up Attacks . | . . . . . . Damage Inflicted 5071 | 50 1002 . 946 . 3073 Guns 890 | 50 63 . 517 . 260 Cannons 2426 | . 939 . 151 . 1336 Explosions 1755 | . . . 278 . 1477 Melee . | . . . . . . Ramming . | . . . . . . Kinetic 26 | . . . . . 26 Thermal 2782 | 50 1002 . 283 . 1447 Explosive 1724 | . . . 247 . 1477 Electromagnetic 539 | . . . 416 . 123 Impact . | . . . . . . Slashing . | . . . . . . Piercing . | . . . . . . Highest Corruption 1 | . . . . . 1 Average Corruption 1 | . . . . . 1 Corruption Purged . | . . . . . . Corruption Blocked . | . . . . . . Effects 1 | . . . . . 1 Matter Fused 1 | . . . . . 1 Overload Shots . | . . . . . . Overflow Damage 65 | . 23 . 2 . 40 Projectiles 23 | . 23 . . . . Explosions 42 | . . . 2 . 40 Melee . | . . . . . . Knockbacks . | . . . . . . Impact . | . . . . . . Kinetic . | . . . . . . Secondary . | . . . . . . Self-Inflicted Damage 153 | . . . 39 . 114 Shots 6 | . . . 1 . 5 Rammed 1 | . 1 . . . . Targets Rammed 1 | . 1 . . . . Kicked . | . . . . . . Crushed . | . . . . . . Highest Temperature 839 | 136 461 . 240 . 839 Average Temperature 130 | 74 150 . 67 . 135 Received Heat Transfer 1281 | . 324 . 96 . 861 Effects 10 | . 3 . 2 . 5 Shutdowns 1 | . . . . . 1 Energy Bleed 1 | . . . . . 1 Interference 4 | . 2 . 2 . . Matter Decay 2 | . 1 . . . 1 Damage (major) 1 | . . . . . 1 Damage (core) 1 | . . . . . 1 Siege Activations . | . . . . . . Martial Activations . | . . . . . . Shielding Activations . | . . . . . . Robots Disrupted . | . . . . . . Combat Hostiles . | . . . . . . Robots Corrupted . | . . . . . . Combat Hostiles . | . . . . . . Parts Fried . | . . . . . . Impact Corruptions . | . . . . . . Robots Melted . | . . . . . . Combat Hostiles . | . . . . . . Parts Melted 7 | . 3 . . . 4 Heat Transferred 5304 | 148 2072 . 531 . 2553 Parts Sabotaged . | . . . . . . Parts Stolen . | . . . . . . Parts Stripped . | . . . . . . Power Chain Reactions 2 | . . . 2 . . Alert | -11 -10 -10 -9 -9 -9 ------- Run | Yrd Mat Min Mat Sto Gar Maximum Alert Level 3 | . . . 1 . 3 Low Security (%) 53 | 100 100 100 63 100 19 Level 1 8 | . . . 36 . 4 Level 2 14 | . . . . . 28 Level 3 23 | . . . . . 47 Level 4 . | . . . . . . Level 5 . | . . . . . . High Security . | . . . . . . Max Security . | . . . . . . Peak Influence 1019 | 10 118 45 335 137 1019 Initial 137 | . . 45 5 137 89 Average 347 | 3 46 31 162 137 603 Influence Increases 1864 | 10 384 . 530 . 940 Destroy 0b10 Robot/C 1080 | . 200 . 280 . 600 Destroy 0b10 Robot/NC 80 | 10 25 . 40 . 5 Destroy Leader 174 | . 58 . 76 . 40 Allied During Kill 15 | . . . 15 . . Successful Hack 45 | . 6 . 5 . 34 Select Force Hacks 50 | . 50 . . . . Disable Machine 60 | . 30 . 30 . . Anti-Garrison Action 75 | . . . . . 75 Destroy Structure 165 | . . . 39 . 126 Lose Combat Pursuer 120 | . 15 . 45 . 60 Influence Decreases 905 | 10 266 103 218 190 118 Entered New Map 321 | . . 73 10 190 48 Time Decay 494 | 10 256 30 198 . . Lost Part 90 | . 10 . 10 . 70 Squads Dispatched 4 | . 2 . 2 . . Investigation 3 | . 1 . 2 . . Extermination . | . . . . . . Reinforcement 1 | . 1 . . . . Assault . | . . . . . . Garrison . | . . . . . . Intercept . | . . . . . . Searches Triggered . | . . . . . . Construction Impeded . | . . . . . . Haulers Reinforced . | . . . . . . Active Scanning Responses . | . . . . . . Cargo Convoy Interrupts . | . . . . . . Stealth | -11 -10 -10 -9 -9 -9 --------- Run | Yrd Mat Min Mat Sto Gar Distress Signals 4 | . 2 . 2 . . Communications Jammed . | . . . . . . Distress Signals . | . . . . . . Times Spotted 65 | . 14 . 21 . 30 Peak Tracking Total 6 | . 6 . 5 . 4 Tactical Retreats 8 | . 1 . 3 . 4 Traps | -11 -10 -10 -9 -9 -9 ------- Run | Yrd Mat Min Mat Sto Gar Traps Triggered . | . . . . . . Indirectly . | . . . . . . Trap Hack Attempts . | . . . . . . Triggered . | . . . . . . Disarmed . | . . . . . . Reprogrammed . | . . . . . . Reused . | . . . . . . Traps Extracted . | . . . . . . Installed . | . . . . . . Triggered . | . . . . . . Machines | -11 -10 -10 -9 -9 -9 ---------- Run | Yrd Mat Min Mat Sto Gar Machines Disabled 5 | . 2 . 2 . 1 Max in Single Turn 1 | . 1 . 1 . 1 Machines Repaired . | . . . . . . Machines Dismantled . | . . . . . . Machines Sabotaged 1 | . 1 . . . . Overloaded Fab Kills . | . . . . . . Hacking | -11 -10 -10 -9 -9 -9 --------- Run | Yrd Mat Min Mat Sto Gar Machines Accessed 9 | . 3 . 2 1 3 Terminals 8 | . 3 . 2 . 3 Fabricators . | . . . . . . Repair Stations . | . . . . . . Recycling Units . | . . . . . . Scanalyzers . | . . . . . . Garrison Access 1 | . . . . 1 . Total Hacks 21 | . 10 . 6 1 4 Successful 8 | . 2 . 2 1 3 Failed 12 | . 7 . 4 . 1 Catastrophic 2 | . 1 . . . 1 Database Lockouts 1 | . 1 . . . . Manual 18 | . 11 . 6 . 1 Terminals 20 | . 10 . 6 . 4 Fabricators . | . . . . . . Repair Stations . | . . . . . . Recycling Units . | . . . . . . Scanalyzers . | . . . . . . Garrison Access 1 | . . . . 1 . Terminal Hacks 4 | . 1 . . . 3 Robot Analysis 1 | . 1 . . . . Open Door 1 | . . . . . 1 Emergency Access Points 1 | . . . . . 1 Patrol Navigation 1 | . . . . . 1 Fabricator Hacks . | . . . . . . Repair Station Hacks . | . . . . . . Recycling Unit Hacks . | . . . . . . Scanalyzer . | . . . . . . Garrison Access Hacks 1 | . . . . 1 . Unlock Access 1 | . . . . 1 . Unauthorized Hacks 3 | . 1 . 2 . . Terminals 3 | . 1 . 2 . . Botnet 1 | . . . 1 . . Sabotage 2 | . 1 . 1 . . Fabricators . | . . . . . . Repair Stations . | . . . . . . Recycling Units . | . . . . . . Scanalyzers . | . . . . . . Garrison Access . | . . . . . . Data Cores Recovered 1 | . . . 1 . . Used 1 | . . . 1 . . Hacking Detections 5 | . 2 . 2 . 1 Full Trace Events 2 | . 1 . 1 . . Feedback Events . | . . . . . . Feedback Blocked . | . . . . . . Robot Schematics Acquired . | . . . . . . Robots Built . | . . . . . . Authchips . | . . . . . . Time . | . . . . . . Total Robot Build Rating . | . . . . . . Part Schematics Acquired . | . . . . . . Parts Built . | . . . . . . Authchips . | . . . . . . Time . | . . . . . . Total Part Build Rating . | . . . . . . Part Studies Acquired . | . . . . . . Parts Repaired . | . . . . . . Time . | . . . . . . Parts Recycled . | . . . . . . Recycled Matter . | . . . . . . Retrieved Matter . | . . . . . . Retrieved Components . | . . . . . . Parts Scanalyzed . | . . . . . . Part Schematics Acquired . | . . . . . . Parts Damaged . | . . . . . . Bothacking | -11 -10 -10 -9 -9 -9 ------------ Run | Yrd Mat Min Mat Sto Gar Used RIF Installer 2 | . . . . . 2 Threat Obfuscator 1 | . . . . . 1 Patrol Navigation 1 | . . . . . 1 Robots Hacked . | . . . . . . Non-combat . | . . . . . . Combat . | . . . . . . Robot Hacks Applied . | . . . . . . Relay Couplers Released . | . . . . . . Fabnet Peak Effective % . | . . . . . . Robots Rewired 2 | . . . . . 2 Allies Hacked . | . . . . . . Hacks Repelled . | . . . . . . Allies | -11 -10 -10 -9 -9 -9 -------- Run | Yrd Mat Min Mat Sto Gar Total Allies 3 | . . . 1 . 2 Largest Group 2 | . . . 1 . 2 Highest-Rated Group 70 | . . . 57 . 70 Highest-Rated Ally 57 | . . . 57 . 39 Total Orders . | . . . . . . Ally Attacks 20 | . . . 13 . 7 Total Damage 425 | . . . 371 . 54 Kills 7 | . . . 7 . . Allies Corrupted . | . . . . . . Allies Melted . | . . . . . . X0-1V1 Amusement Gains 127 | . 22 . 5 . 100 Average Entertainment 7 | . 18 12 13 5 4 Good Acts 15 | . . . 4 . 11 Bad Acts 7 | . . . . . 7 Intel | -11 -10 -10 -9 -9 -9 ------- Run | Yrd Mat Min Mat Sto Gar Active Infowar (turns) 619 | 22 597 . . . . Seismic 619 | 22 597 . . . . Robot Analysis Total 1 | . 1 . . . . Derelict Logs Recovered . | . . . . . . Drone Launches . | . . . . . . Drone Recoveries . | . . . . . . Exploration | -11 -10 -10 -9 -9 -9 ------------- Run | Yrd Mat Min Mat Sto Gar Turns Passed 2504 | 44 690 73 411 16 1270 Spaces Moved 1174 | 20 283 78 191 10 592 Core . | . . . . . . Treads 986 | 12 257 . 115 10 592 Legs 8 | 8 . . . . . Wheels 180 | . 26 78 76 . . Hover . | . . . . . . Flight . | . . . . . . Fastest Speed 80 | 120 95 80 80 160 160 Average Speed 149 | 144 154 87 135 160 160 Slowest Speed 240 | 160 160 95 240 160 160 Overloaded Moves . | . . . . . . Propulsion Burnouts . | . . . . . . Robots Hopped . | . . . . . . Potential Cave-ins . | . . . . . . Cave-ins Triggered . | . . . . . . Exploration Rate (%) 29 | 3 54 27 24 6 64 Regions Visited 5 Branch Regions 2 Pre-discovered Areas . | . . . . . . Known Exits Taken 1 | . . . . 1 . Unknown Exits Taken 4 | 1 1 1 1 . . Scrap Searched . | . . . . . . Spaces Dug . | . . . . . . Terrain Destroyed 108 | . . . 34 . 74 Melee . | . . . . . . Projectile . | . . . . . . AOE 108 | . . . 34 . 74 Terrain Rammed . | . . . . . . Walls Destroyed . | . . . . . . Machines Disabled . | . . . . . . Actions | -11 -10 -10 -9 -9 -9 --------- Run | Yrd Mat Min Mat Sto Gar Total 1635 | 28 452 81 292 10 772 Wait 186 | . 100 1 44 . 41 Move 1170 | 19 282 77 190 10 592 Hop . | . . . . . . Pick Up 27 | . 7 1 4 . 15 Fast Attach 8 | 1 . . 7 . . Attach 10 | 2 1 . 2 . 5 Detach . | . . . . . . Swap 28 | . 5 2 10 . 11 Drop 21 | 2 2 . 10 . 7 Fire 165 | 4 54 . 25 . 82 Melee . | . . . . . . Ram . | . . . . . . Kick . | . . . . . . Crush 1 | . 1 . . . . Escape Stasis . | . . . . . . Rewire 19 | . . . . . 19 Trap . | . . . . . . Miscellaneous . | . . . . . . Route ------- -11/Scrapyard -10/Materials (discovered 4 exits: *Mat / [*Min x2] / [*Sub]) -10/Mines -9/Materials -9/Storage -9/Garrison (discovered 3 exits: *Mat x3) History --------- Turn | Location | Event 14 | -11/Scrapyard | Discovered new exit (range 3) 45 | -11/Scrapyard | Entered Materials 93 | -10/Materials | Central database locked down 319 | -10/Materials | Build established: Mutant 413 | -10/Materials | Discovered new exit (range 12) 465 | -10/Materials | Discovered new exit (range 5) 534 | -10/Materials | Discovered new exit (range 6) 648 | -10/Materials | Discovered new exit (range 6) 712 | -10/Materials | Prayed at D.C.S.S. Altar Unit 735 | -10/Materials | Entered Mines 800 | -10/Mines | Discovered new exit (range 12) 808 | -10/Mines | Entered Materials 808 | -9/Materials | Evolved 2 slots: Propulsion x1, Weapon x1 872 | -9/Materials | KI resistance permanently improved by X0-1V1 (+20%; -200 max core) 954 | -9/Materials | X0-1V1 sent allied Chaos Knight (x1) 1209 | -9/Materials | Discovered new exit (range 7) 1216 | -9/Materials | Build established: Scavenger-Gunner 1219 | -9/Materials | Entered Storage 1235 | -9/Storage | Identified exit to Garrison 1235 | -9/Storage | Entered Garrison 1301 | -9/Garrison | Triggered checkpoint 1483 | -9/Garrison | Triggered checkpoint 1493 | -9/Garrison | Triggered checkpoint 1537 | -9/Garrison | Triggered checkpoint 1542 | -9/Garrison | Triggered checkpoint 1702 | -9/Garrison | Discovered new exit (range 10) 1815 | -9/Garrison | Installed Relay Interface Framework 1888 | -9/Garrison | Utility slot count permanently improved by X0-1V1 (+1) 1982 | -9/Garrison | Spotted B-75 Beast 2049 | -9/Garrison | Expanded RIF knowledge: Patrol Navigation 2185 | -9/Garrison | Triggered checkpoint 2234 | -9/Garrison | Triggered checkpoint 2304 | -9/Garrison | Expanded RIF knowledge: Threat Obfuscation 2404 | -9/Garrison | Discovered new exit (range 10) 2424 | -9/Garrison | Identified exit to Materials 2424 | -9/Garrison | X0-1V1 revealed exit location to -8/Materials 2427 | -9/Garrison | Core integrity restored by X0-1V1 (+36) 2430 | -9/Garrison | X0-1V1 caused items to flee you 2441 | -9/Garrison | X0-1V1 activates XOMVISION 2451 | -9/Garrison | X0-1V1 rewrote 2P-XQA(g) IFF filter 2465 | -9/Garrison | X0-1V1 sent you into danger 2484 | -9/Garrison | Core integrity fell below 50% 2506 | -9/Garrison | Core melted Last Messages --------------- 02486_ Arc Projector destroyed. 02488_ 3 Matter pulverized. 02491_ 2 Matter pulverized. 02495_ Movement behavior is fully back under control. 02499_ Lgt. Treads destroyed. 02499_ Critical hit (Meltdown: +330). 02499_ X0-1V1 is mildly amused. 02501_ Power failure, Lgt. Ion Engine shutdown. 02501_ Overheating: Lgt. Treads damaged (-11). 02501_ 3 Matter pulverized. 02502_ Overheating: Energy bleed (-15). 02502_ Critical hit (Meltdown: +330). 02502_ Arc Projector destroyed. 02505_ Overheating: Matter decay (-35). 02505_ X0-1V1's Piety Tracker destroyed. 02505_ X0-1V1 is mildly amused. 02505_ Lgt. Treads destroyed. 02506_ Overheating: Core damaged (-26). 02506_ X0-1V1 bursts into laughter! Map ----- +----------------------------------------------------+ | ????????????????????## ## #???# #?????????? | | ????????????????????#! !# #???# #?????????? | | ????????????????????#! !# ##### #????###### | | ????????????????????#! !" " + | | ????????????????????#! !####### ###+##+##+# | | ????????????????????#!!!!#?????# | | ????????????????????######?????# | | ???????????????????????????????# | | ???????????????????????????????############ | | ????????????????????????????????????????###[ | | ????????????????????????????????????????#% | | ????????????????????????????????????????#%=* | | ????????????????????????????????????????# [ | | ????????????????????????????????????????# | | ??????????#################?????????????### | | ??????????#""""^## !!!################ | | ??????????#" " " ! | | ??????????#""""^##! !####### = | | ??????????########! !#?????# #######[ | | ?????????????????#!!^ !!#?????# #????# # | | ?????????????????#### ####?????# g#????#### | | ????????????????????# #????????# #???????# | | ????????????????????# #????????# #???????# | | ????????????????????# #????????# #???????# | | ?????????????????####^ #????????# #???????# | | ?????????????????# #@/########## ######### | | ?????????????????# % % | | ?????????????????# BB %% | | ?????????????????#% BB;########## #####+####+ | | ?????????????????#### #????????# #?????????? | | ????????????????????# #????????# #?????????? | | ????????????????????####????????# #?????????? | | ????????????????????????????###?# #####+#???? | | ???????????????????????????? ?+ #???? | | ????????????????????????????# #?# ##### #???? | | ????????????????????????????# ###=!#???# #???? | | ????????????????????????????# ## [*#???# #???? | | ?????????????????????######## ###![#???# #???? | | ?????????????????????# # # # = #???# ##### | | ????????????????????#### #???# ##!!! | | ????????????????????# # +???+ | | ????????????????????# < ## ####???# ## | | ????????????????????# ?# # ##?????# ##### | | ????????????????????# # ### ###??????# ##??? | | ????????????????????## ##?# #????????# T#??? | | ?????????????????????###??##==###??????# ##??? | | ??????????????????????????# % [ ######?# #???? | | ??????????????????????????# [ = #?# #???? | | ??????????????????????????# * ###"""### #???? | | ?????????????????????###### # ## # | +----------------------------------------------------+ Best States ------------- Heat Dissipation 38 Energy Generation 22 Energy Capacity 1025 Matter Stores 300 Matter Capacity 700 Sight Range 21 Terrain Scan Density 10 Resistance: KI 20 Evasion (%) 44 Recoil Reduction 3 Item Schematics ----------------- None Robot Schematics ------------------ None Fabricated ------------ Nothing Repaired ---------- Nothing Studied --------- None Alien Tech Used ----------------- None Achievements -------------- None Challenges ------------ None Game ------ Seed TerrorAnalysisAccelerator Manual? 0 Play Time 00:20:56 Cumulative 670.0 hours Start 2026.09.07 @ 04:58:03 End 2026.09.07 @ 05:18:56 Sessions 1 Manual Loads 0 Difficulty Rogue Special Mode None Game No. 602 Rogue 566 Adventurer 36 Explorer 0 Win Type - Total 8 Types 2/2/0/1/1/0/0/2/0/0 Lore% 86 Gallery% 75 Achievement% 69 Wizard Run 0 Options --------- Layout 2 ASCII 0 Keyboard 0 Movement Numpad Keybinds 0 Fullscreen 1 Font 48/Smallcaps Map View 50x44 Zoom Use 0% Tactical HUD 1 Map Filters NONE Filters NONE Steam 1 RUN: 4c41fc4b-581e-420d-b057-d100c29f3b5a